lending/lending_fUSD_20240711
["ID","MTS","AMOUNT","RATE_DAILY","PERIOD"]
[331733273,1720714511299,593.66465268,0.00011199,2]
[331733274,1720714511331,4797.95573876,0.00011199,2]
[331733275,1720714511360,3728.27186824,0.00011199,2]
[331733276,1720714511382,100300.36029928,0.00011199,2]
[331733277,1720714530944,150.0,0.00025946,120]
[331733279,1720714553220,929.34401124,0.00011199,2]
[331733280,1720714567517,468.28,0.00011008,2]
[331733281,1720714591003,150.0,0.00025362,120]
[331733287,1720714652500,524.57681731,0.00011199,2]
[331733288,1720714654374,316.0773283,0.00011199,2]
[331733289,1720714683255,1295.53948665,0.00011199,2]
[331733291,1720714771389,150.0,0.00019171,120]
[331733292,1720714785633,1631.18925998,0.00011199,2]
[331733295,1720714890792,150.0,0.00019231,120]
[331733296,1720714997756,265.68910876,0.00011199,2]
[331733297,1720715010958,150.0,0.00025784,120]
[331733298,1720715012944,263.7800964,0.00011199,2]
[331733299,1720715028985,263.7800964,0.00011199,2]
[331733300,1720715057656,910.4243238,0.00011199,2]
[331733301,1720715063387,651.75261058,0.00011199,2]
[331733302,1720715064249,12282.55495953,0.00011199,2]
[331733303,1720715089498,316.0773283,0.00011199,2]
[331733304,1720715103139,469.31,0.00010465,2]
[331733308,1720715139537,2375.40634291,0.00011199,2]
[331733309,1720715149815,552.57239721,0.00011199,2]
[331733310,1720715160973,201.42918999,0.00011199,2]
[331733313,1720715191126,150.0,0.00025797,120]
[331733314,1720715198136,155.17489344,0.00011199,2]
[331733316,1720715201414,227.30730583,0.00011199,2]
[331733321,1720715236666,1000.0,0.00027,120]
[331733324,1720715269744,315.50863452,0.00025,60]
[331733328,1720715292339,596.62532006,0.00011199,2]
[331733330,1720715353116,1050.0,0.00011199,2]
[331733331,1720715364407,296.19802604,0.00011199,2]
[331733337,1720715375214,-1052.180284,0.00012153,2]
[331733338,1720715375243,-1275.0666,0.00012214,2]
[331733342,1720715377438,95.38404007,0.00012302,2]
[331733344,1720715400358,-220.69328823,0.00012302,2]
[331733345,1720715400386,-470.45410943,0.00012302,2]
[331733346,1720715430868,150.0,0.00018767,120]
[331733360,1720715431506,-181.00587913,0.00012302,2]
[331733361,1720715431515,-155.0,0.00012302,2]
[331733363,1720715431525,-218.40264018,0.00012314,2]
[331733365,1720715431534,-101.19860475,0.00012368,2]
[331733367,1720715431546,-935.99632994,0.00012368,2]
[331733369,1720715431558,-530.14499983,0.00012368,2]
[331733371,1720715431569,-4998.39904866,0.00012368,2]
[331733372,1720715431581,-4212.11101682,0.00012368,2]
[331733373,1720715431590,-2203.79,0.00012399,2]
[331733374,1720715431600,-200.04,0.00012414,2]
[331733375,1720715431609,-1782.14563469,0.00012414,2]
[331733376,1720715431618,-2368.45,0.0001243,2]
[331733377,1720715431627,-250.0,0.00012435,2]
[331733378,1720715431637,-800.0,0.00012456,2]
[331733379,1720715431646,-150.17,0.00012467,2]
[331733380,1720715431656,-250.0,0.00012539,2]
[331733381,1720715431666,-1710.2800446,0.00012539,2]
[331733382,1720715431677,-478.1956183,0.00012539,2]
[331733383,1720715431690,-914.8143371,0.00012539,2]
[331733384,1720715431700,-499.99,0.00012539,2]
[331733385,1720715431711,-783.63,0.00012539,2]
[331733386,1720715431721,-150.17,0.0001256,2]
[331733387,1720715431730,-150.17,0.00012653,2]
[331733388,1720715431740,-469.31,0.00012729,2]
[331733389,1720715431749,-150.17,0.00012746,2]
[331733390,1720715431760,-168.1,0.00012811,2]
[331733391,1720715431769,-150.17,0.00012839,2]
[331733392,1720715431779,-150.17,0.00012931,2]
[331733393,1720715431788,-219.32,0.00012988,2]
[331733394,1720715431798,-200.0,0.00013019,2]
[331733395,1720715431807,-150.17,0.00013024,2]
[331733396,1720715431817,-200.0,0.00013073,2]
[331733397,1720715431826,-150.17,0.00013117,2]
[331733398,1720715431837,-3396.35507616,0.00013128,2]
[331733399,1720715431846,-159.15927807,0.00013128,2]
[331733400,1720715431856,-787.19208309,0.00013128,2]
[331733401,1720715431866,-882.59216232,0.00013472,2]
[331733402,1720715431875,-155.0,0.00013472,2]
[331733403,1720715431885,-527.81158355,0.00013543,2]
[331733404,1720715431894,-346.03148912,0.00013543,2]
[331733405,1720715431903,-524.57681731,0.00013574,2]
[331733406,1720715431912,-479.14,0.00013699,2]
[331733407,1720715431921,-7376.74134406,0.00013808,2]
[331733408,1720715431931,-1000.0,0.0001386,2]
[331733409,1720715431941,-5152.01362219,0.0001388,2]
[331733410,1720715431951,-965.9951,0.00013899,2]
[331733411,1720715431960,-290.4008,0.000139,2]
[331733412,1720715431969,-749.5555,0.000139,2]
[331733413,1720715431978,-3223.0178,0.000139,2]
[331733414,1720715431988,-303.3907,0.000139,2]
[331733415,1720715431996,-13517.93774984,0.000139,2]
[331733416,1720715432017,-8139.92332674,0.000139,2]
[331733417,1720715432052,-9121.58392342,0.000139,2]
[331733418,1720715432062,-2162.1721,0.000139,2]
[331733419,1720715432071,-7.72501441,0.000139,2]
[331733420,1720715432083,-3921.29546248,0.000139,2]
[331733430,1720715437456,-366.11090361,0.00012302,2]
[331733431,1720715437466,-113.13909612,0.00013574,2]
[331733432,1720715437478,-962.08308846,0.00013574,2]
[331733433,1720715437488,-6070.97952311,0.000139,2]
[331733434,1720715437498,-298.56781629,0.000139,2]
[331733435,1720715437507,-125.88592502,0.000139,2]
[331733436,1720715437519,-348.8906638,0.000139,2]
[331733437,1720715437531,-1000.0,0.000139,2]
[331733438,1720715437541,-308.21682346,0.000139,2]
[331733439,1720715437550,-871.49,0.0001399,3]
[331733440,1720715437559,-597.34699274,0.0001399,2]
[331733441,1720715437571,-7521.09,0.0001399,2]
[331733442,1720715437588,-288.435,0.0001399,2]
[331733443,1720715437599,-283.86999996,0.0001399,2]
[331733444,1720715437638,-367.18970664,0.0001399,2]
[331733445,1720715437652,-3554.63684031,0.0001399,2]
[331733446,1720715437662,-770.17,0.00013999,2]
[331733447,1720715437672,-68.10621378,0.00013999,2]
[331733448,1720715437684,-579.79378622,0.00013999,2]
[331733449,1720715437693,-668.72,0.00013999,2]
[331733450,1720715437703,-165.97207177,0.00013999,2]
[331733451,1720715437712,-936.52,0.00013999,2]
[331733452,1720715437722,-500.0,0.00013999,2]
[331733453,1720715437731,-822.62,0.00013999,2]
[331733454,1720715437740,-426.84522834,0.00013999,2]
[331733455,1720715437750,-500.0,0.00013999,2]
[331733456,1720715437762,-716.56,0.00013999,2]
[331733457,1720715437771,-614.97,0.00013999,2]
[331733458,1720715437781,-676.99,0.00013999,2]
[331733459,1720715437791,-500.0,0.00013999,2]
[331733460,1720715437800,-878.62,0.00013999,2]
[331733461,1720715437810,-866.98,0.00013999,2]
[331733462,1720715437820,-865.77,0.00013999,2]
[331733463,1720715437830,-636.5,0.00013999,2]
[331733464,1720715437839,-629.86,0.00013999,2]
[331733465,1720715437848,-215.76,0.00013999,7]
[331733466,1720715437859,-623.76,0.00013999,2]
[331733467,1720715437868,-500.0,0.00013999,2]
[331733468,1720715437878,-500.0,0.00013999,2]
[331733470,1720715437887,-159.07360385,0.00013999,2]
[331733472,1720715437896,-756.49,0.00013999,2]
[331733474,1720715437906,-603.89,0.00013999,2]
[331733476,1720715437916,-661.5,0.00013999,2]
[331733478,1720715437925,-500.0,0.00013999,2]
[331733479,1720715437935,-654.86,0.00013999,2]
[331733480,1720715437945,-500.0,0.00013999,2]
[331733481,1720715437954,-1202.19,0.00013999,2]
[331733482,1720715437964,-746.68,0.00013999,2]
[331733483,1720715437974,-587.88,0.00013999,2]
[331733484,1720715437983,-845.23,0.00013999,2]
[331733485,1720715437993,-500.0,0.00013999,2]
[331733486,1720715438002,-693.23,0.00013999,2]
[331733487,1720715438012,-513.21,0.00013999,2]
[331733488,1720715438022,-500.0,0.00013999,2]
[331733489,1720715438031,-770.87,0.00013999,2]
[331733490,1720715438040,-667.03,0.00013999,2]
[331733491,1720715438050,-652.32,0.00013999,2]
[331733492,1720715438059,-500.0,0.00013999,2]
[331733493,1720715438068,-808.9,0.00013999,2]
[331733494,1720715438077,-679.81,0.00013999,2]
[331733495,1720715438086,-278.97461135,0.00013999,2]
[331733496,1720715438095,-595.22,0.00013999,2]
[331733497,1720715438104,-492.88809318,0.00013999,2]
[331733498,1720715438116,-7.11190682,0.00013999,2]
[331733499,1720715438126,-782.06,0.00013999,2]
[331733500,1720715438135,-500.0,0.00013999,2]
[331733501,1720715438144,-598.93,0.00013999,2]
[331733502,1720715438153,-500.0,0.00013999,2]
[331733503,1720715438163,-765.5,0.00013999,2]
[331733504,1720715438172,-627.52720199,0.00013999,2]
[331733505,1720715438182,-627.52720199,0.00013999,2]
[331733506,1720715438191,-979.97,0.00013999,2]
[331733507,1720715438200,-500.0,0.00013999,2]
[331733508,1720715438209,-500.0,0.00013999,2]
[331733509,1720715438218,-604.98,0.00013999,2]
[331733510,1720715438228,-370.37397323,0.00013999,2]
[331733511,1720715438238,-45.93740616,0.00013999,2]
[331733512,1720715438259,-575.49259384,0.00013999,2]
[331733513,1720715438269,-540.43306208,0.00014,2]
[331733514,1720715438280,-435.56693792,0.00014,2]
[331733515,1720715438292,-1977.46834301,0.00014,2]
[331733516,1720715438304,-7791.09881148,0.00014,2]
[331733517,1720715438319,-393.19965,0.00014,2]
[331733518,1720715438331,-19071.47605655,0.00014,2]
[331733525,1720715439561,-359.44640036,0.00014,2]
[331733527,1720715439572,-576.64,0.00014,2]
[331733528,1720715439585,-400.07483383,0.00014,2]
[331733529,1720715439600,-17100.0,0.00014,2]
[331733530,1720715439612,-1316.60835388,0.00014,2]
[331733531,1720715439627,-137180.87660164,0.00014,2]
[331733532,1720715439637,-47209.09053136,0.00014,2]
[331733533,1720715439648,-413344.7113045,0.00014,2]
[331733534,1720715439660,-750.72000001,0.00014,2]
[331733535,1720715439671,-1156.68,0.00014,2]
[331733536,1720715439683,-3173.31819312,0.00014,2]
[331733537,1720715439694,-1258.83543951,0.00014,2]
[331733538,1720715439705,-556.53829037,0.00014,2]
[331733539,1720715439717,-3315.2,0.00014,2]
[331733540,1720715439728,-523.04730302,0.00014,2]
[331733541,1720715439739,-1720.67636963,0.00014,2]
[331733542,1720715439887,-5237.06,0.00014,2]
[331733543,1720715439948,-971.108,0.00014,2]
[331733544,1720715439960,-1626.45291562,0.00014,2]
[331733627,1720715442546,-748.724,0.00013574,2]
[331733630,1720715442557,-702.67096275,0.00013574,2]
[331733637,1720715442611,-7668.49729693,0.00013574,2]
[331733638,1720715442621,-597.77,0.00013999,2]
[331733639,1720715442631,-2726.40206491,0.00014,2]
[331733640,1720715442670,-1082.91734936,0.00014,2]
[331733641,1720715442681,-113209.49382293,0.00014,2]
[331733642,1720715442692,-1568.51939557,0.00014,2]
[331733643,1720715442788,-122588.70898176,0.00014,2]
[331733644,1720715442801,-6000.0,0.00014,2]
[331733645,1720715442813,-11877.07977951,0.00014,2]
[331733646,1720715442847,-354.726,0.00014,2]
[331733647,1720715442859,-723.27767348,0.00014,2]
[331733648,1720715442998,-1381.77920835,0.00014,2]
[331733649,1720715443010,-3432.88,0.00014,2]
[331733650,1720715443023,-6690.018384,0.00014,2]
[331733651,1720715443041,-10255.70878323,0.00014,2]
[331733652,1720715443053,-604.95862919,0.00014,2]
[331733653,1720715443065,-701.78153052,0.00014,2]
[331733654,1720715443076,-1930.675,0.00014,2]
[331733655,1720715443087,-105783.32595014,0.00014,2]
[331733656,1720715443098,-12773.5267494,0.00014,2]
[331733657,1720715443109,-1718.60163644,0.00014,2]
[331733700,1720715445759,-310.75725806,0.00014,2]
[331733701,1720715445826,-1302.47389257,0.00014,2]
[331733702,1720715445838,-38961.50295327,0.00014,2]
[331733703,1720715445849,-2427.55502287,0.00014,2]
[331733704,1720715445879,-489894.90554944,0.00014,2]
[331733705,1720715445890,-1726.79483801,0.00014,2]
[331733707,1720715445940,-3946.5,0.00014,2]
[331733708,1720715445951,-7265.7,0.00014,2]
[331733709,1720715445962,-990155.10236893,0.00014,2]
[331733711,1720715446002,-8507.88502033,0.00014,2]
[331733712,1720715446014,-719.95798759,0.00014,2]
[331733713,1720715446026,-20188.8296069,0.00014,2]
[331733714,1720715446037,-255.95603174,0.00014,2]
[331733715,1720715446117,-34264.10693623,0.00014,2]
[331733720,1720715491463,150.0,0.00018262,120]
[331733723,1720715525581,500.0,0.0001126,2]
[331733724,1720715670905,150.0,0.00017218,120]
[331733725,1720715689472,446.83,0.00010944,2]
[331733726,1720715730937,150.0,0.00020431,120]
[331733727,1720715910817,150.0,0.00022146,120]
[331733730,1720715979655,1003.05735552,0.00011199,2]
[331733731,1720715989343,285.04380365,0.00011199,2]
[331733732,1720716040958,184.7840485,0.00011199,2]
[331733733,1720716045576,627.52720199,0.00011199,2]
[331733735,1720716150746,150.0,0.00019572,120]
[331733736,1720716182376,1845.8931512,0.00011199,2]
[331733738,1720716187899,1333.2878455,0.00011199,2]
[331733739,1720716196470,3074.42673232,0.00011199,2]
[331733740,1720716268912,300.51199197,0.00011199,2]
[331733747,1720716340452,1742.85611798,0.00011199,2]
[331733749,1720716363706,448.97,0.00010717,2]
[331733751,1720716385735,1054.88934928,0.00011199,2]
[331733752,1720716386145,1019.95118513,0.00011199,2]
[331733756,1720716392619,1069.67493178,0.00011199,2]
[331733757,1720716395486,316.0773283,0.00011199,2]
[331733763,1720716450790,150.0,0.00019831,120]
[331733765,1720716469695,946.68077921,0.00011199,2]
[331733766,1720716475284,617.9630906,0.00011199,2]
[331733768,1720716481986,11078.85243539,0.00011199,2]
[331733769,1720716483260,155.77985922,0.00011199,2]
[331733771,1720716511371,150.0,0.0002698,120]
[331733772,1720716531705,226.5848512,0.00011199,2]
[331733773,1720716535660,302.92479732,0.00011199,2]
[331733774,1720716536273,276.40082024,0.00011199,2]
[331733775,1720716549246,155.14159365,0.00011199,2]
[331733777,1720716553693,-3146.6643,0.00011982,2]
[331733779,1720716553726,-303.90979009,0.00011982,2]
[331733782,1720716554258,3028.79892591,0.00011199,2]
[331733784,1720716564265,3028.79892591,0.00011199,2]
[331733785,1720716568292,155.0,0.00011199,2]
[331733786,1720716570678,173.59426351,0.00011199,2]
[331733791,1720716578855,-620.11962791,0.00011982,2]
[331733792,1720716578884,-399.08411014,0.00012082,2]
[331733794,1720716598860,1524.49787154,0.00027,120]
[331733799,1720716615636,789.37066542,0.00011199,2]
[331733803,1720716632266,-161.19035565,0.00011982,2]
[331733804,1720716632276,-100.91588986,0.00012082,2]
[331733805,1720716632285,-155.0,0.00012273,2]
[331733806,1720716632294,-233.46867856,0.00012273,2]
[331733807,1720716632303,-300.0,0.00012301,2]
[331733808,1720716632313,-2876.85209186,0.00012302,2]
[331733809,1720716632322,-651.60629957,0.00012302,2]
[331733810,1720716632331,-156.26719113,0.00012302,2]
[331733811,1720716632341,-254.25713924,0.00012314,2]
[331733812,1720716632350,-889.8302,0.00012485,2]
[331733813,1720716632360,-370.2,0.00012548,2]
[331733814,1720716632369,-150.0,0.00012548,2]
[331733815,1720716632378,-150.0,0.00012617,2]
[331733816,1720716632387,-627.99,0.00012618,2]
[331733817,1720716632396,-3900.24826886,0.00012622,2]
[331733818,1720716632409,-8162.30173114,0.00012622,2]
[331733819,1720716632418,-1000.0,0.00012627,2]
[331733820,1720716632428,-11551.86,0.00012627,2]
[331733821,1720716632437,-1230.47,0.00012647,2]
[331733822,1720716632446,-2370.52,0.00012653,2]
[331733823,1720716632456,-390.15,0.00012665,2]
[331733824,1720716632465,-250.0,0.00012676,2]
[331733825,1720716632475,-250.0,0.00012711,2]
[331733826,1720716632484,-345.48,0.00012715,2]
[331733827,1720716632493,-175.46,0.00012748,2]
[331733828,1720716632504,-224.54,0.0001289,2]
[331733829,1720716632514,-500.0,0.00012904,2]
[331733830,1720716632523,-448.97,0.00012981,2]
[331733831,1720716632533,-1250.0,0.00013,2]
[331733832,1720716632542,-380.58928978,0.00013128,2]
[331733833,1720716632552,-194.02066443,0.00013128,2]
[331733834,1720716632561,-364.69674518,0.00013128,2]
[331733835,1720716632571,-316.0773283,0.00013472,2]
[331733836,1720716632580,-152.0,0.00013505,3]
[331733837,1720716632590,-163.84671005,0.00013516,2]
[331733838,1720716632600,-1159.83383399,0.00013574,2]
[331733839,1720716632609,-155.0,0.00013574,2]
[331733840,1720716632619,-155.0,0.00013574,2]
[331733841,1720716632628,-976.0,0.00013595,2]
[331733842,1720716632638,-19891.01087653,0.00013634,2]
[331733843,1720716632650,-383.31,0.00013699,2]
[331733844,1720716632663,-500.0,0.00013699,2]
[331733845,1720716632672,-200.0,0.00013699,2]
[331733846,1720716632681,-250.0,0.00013699,2]
[331733847,1720716632690,-1343.85,0.00013699,2]
[331733848,1720716632701,-4598.75,0.00013699,2]
[331733849,1720716632710,-1461.54,0.00013699,2]
[331733850,1720716632719,-2751.0,0.00013699,2]
[331733851,1720716632729,-1006.0,0.000137,2]
[331733852,1720716632739,-500.0,0.00013726,2]
[331733853,1720716632748,-150.0,0.00013734,2]
[331733854,1720716632758,-976.0,0.00013735,2]
[331733855,1720716632767,-11693.74690876,0.00013736,2]
[331733856,1720716632776,-1156.82676208,0.00013736,2]
[331733857,1720716632785,-150.0,0.00013736,2]
[331733858,1720716632794,-300.0,0.0001374,2]
[331733859,1720716632803,-150.0,0.00013746,2]
[331733860,1720716632813,-150.0,0.00013747,2]
[331733861,1720716632823,-150.0,0.00013748,2]
[331733862,1720716632832,-150.0,0.00013749,2]
[331733863,1720716632841,-150.0,0.00013749,2]
[331733864,1720716632850,-150.0,0.00013753,2]
[331733865,1720716632859,-150.0,0.00013753,2]
[331733866,1720716632868,-150.0,0.00013755,2]
[331733867,1720716632877,-150.0,0.00013756,2]
[331733868,1720716632886,-150.0,0.00013757,2]
[331733869,1720716632896,-280.59082626,0.00013757,2]
[331733870,1720716632905,-1288.33484564,0.00013759,2]
[331733871,1720716632914,-150.0,0.00013762,2]
[331733872,1720716632923,-150.0,0.00013762,2]
[331733873,1720716632933,-150.0,0.00013765,2]
[331733874,1720716632942,-150.0,0.00013768,2]
[331733875,1720716632951,-150.0,0.00013769,2]
[331733876,1720716632960,-150.0,0.00013769,2]
[331733877,1720716632969,-150.0,0.0001377,2]
[331733878,1720716632978,-150.0,0.00013787,2]
[331733879,1720716632987,-150.0,0.00013793,2]
[331733880,1720716632996,-150.0,0.00013794,2]
[331733881,1720716633008,-150.0,0.00013795,2]
[331733882,1720716633017,-150.0,0.00013799,2]
[331733883,1720716633119,-150.0,0.000138,2]
[331733884,1720716633128,-165.27070694,0.000138,2]
[331733885,1720716633138,-268.85898304,0.000138,2]
[331733886,1720716633147,-174.58594608,0.00013802,2]
[331733887,1720716633164,-150.0,0.00013807,2]
[331733888,1720716633173,-6639.06720966,0.00013808,2]
[331733889,1720716633183,-150.0,0.00013811,2]
[331733890,1720716633192,-268.85898299,0.00013811,2]
[331733891,1720716633202,-165.27070688,0.00013813,2]
[331733892,1720716633211,-150.0,0.00013819,2]
[331733893,1720716633220,-150.0,0.0001382,2]
[331733894,1720716633231,-150.0,0.00013821,2]
[331733895,1720716633240,-268.85898299,0.00013822,2]
[331733896,1720716633250,-150.0,0.00013823,2]
[331733897,1720716633261,-165.27070688,0.00013825,2]
[331733898,1720716633270,-150.0,0.00013827,2]
[331733899,1720716633281,-150.0,0.00013831,2]
[331733900,1720716633290,-150.0,0.00013831,2]
[331733901,1720716633299,-268.85898299,0.00013833,2]
[331733902,1720716633308,-150.0,0.00013836,2]
[331733903,1720716633318,-154.65391222,0.00013837,2]
[331733904,1720716633328,-150.0,0.00013837,2]
[331733905,1720716633338,-165.27070688,0.00013838,2]
[331733906,1720716633347,-150.0,0.0001384,2]
[331733907,1720716633356,-150.0,0.00013842,2]
[331733908,1720716633366,-150.0,0.00013844,2]
[331733909,1720716633376,-268.85898299,0.00013844,2]
[331733910,1720716633385,-165.27070688,0.0001385,2]
[331733911,1720716633394,-268.85898299,0.00013856,2]
[331733912,1720716633403,-150.0,0.00013856,2]
[331733913,1720716633413,-150.0,0.00013858,2]
[331733914,1720716633422,-150.0,0.0001386,2]
[331733915,1720716633432,-150.0,0.0001386,2]
[331733916,1720716633441,-153.18864,0.0001386,2]
[331733917,1720716633451,-2705.3101574,0.0001386,2]
[331733918,1720716633467,-294.6898426,0.0001386,2]
[331733919,1720716633476,-165.27070688,0.00013863,2]
[331733920,1720716633486,-150.0,0.00013864,2]
[331733921,1720716633496,-268.85898299,0.00013867,2]
[331733922,1720716633506,-150.0,0.00013867,2]
[331733923,1720716633516,-150.0,0.00013869,2]
[331733924,1720716633526,-152.0,0.0001387,4]
[331733925,1720716633535,-150.0,0.00013871,2]
[331733926,1720716633544,-150.0,0.00013874,2]
[331733927,1720716633553,-150.0,0.00013874,2]
[331733928,1720716633563,-165.27070688,0.00013875,2]
[331733929,1720716633572,-976.0,0.00013876,2]
[331733930,1720716633582,-268.85898299,0.00013878,2]
[331733931,1720716633591,-150.0,0.00013879,2]
[331733932,1720716633600,-150.0,0.00013883,2]
[331733933,1720716633609,-150.0,0.00013883,2]
[331733934,1720716633619,-165.27070688,0.00013888,2]
[331733935,1720716633627,-221.4142,0.00013888,2]
[331733936,1720716633637,-200.0,0.00013888,2]
[331733937,1720716633647,-268.85898299,0.00013889,2]
[331733938,1720716633658,-150.0,0.00013889,2]
[331733939,1720716633667,-520.06850352,0.00013889,2]
[331733940,1720716633677,-168.14640675,0.0001389,2]
[331733941,1720716633686,-150.0,0.00013891,2]
[331733942,1720716633696,-321.5650066,0.00013895,2]
[331733943,1720716633706,-168.14640675,0.00013895,2]
[331733944,1720716633715,-150.0,0.00013898,2]
[331733945,1720716633725,-150.0,0.00013899,2]
[331733946,1720716633736,-150.0,0.00013899,2]
[331733947,1720716633745,-545.8850205,0.00013899,2]
[331733948,1720716633755,-2289.2145,0.000139,2]
[331733949,1720716633765,-10000.0,0.000139,2]
[331733950,1720716633775,-150.0,0.000139,2]
[331733951,1720716633784,-165.27070688,0.000139,2]
[331733952,1720716633793,-268.85898299,0.000139,2]
[331733953,1720716633803,-499.46768724,0.000139,2]
[331733954,1720716633813,-168.14640675,0.000139,2]
[331733955,1720716633823,-150.0,0.00013915,2]
[331733956,1720716633833,-150.0,0.00013915,2]
[331733957,1720716633842,-150.0,0.00013916,2]
[331733958,1720716633851,-150.0,0.00013922,2]
[331733959,1720716633861,-150.0,0.0001393,2]
[331733960,1720716633871,-150.0,0.0001393,2]
[331733961,1720716633881,-150.0,0.00013932,2]
[331733962,1720716633890,-150.0,0.00013933,2]
[331733963,1720716633900,-150.0,0.00013933,2]
[331733964,1720716633910,-150.0,0.00013934,2]
[331733965,1720716633919,-150.0,0.00013937,2]
[331733966,1720716633928,-150.0,0.00013938,2]
[331733967,1720716633938,-150.0,0.00013938,2]
[331733968,1720716633948,-150.0,0.00013939,2]
[331733969,1720716633957,-150.0,0.00013942,2]
[331733970,1720716633967,-150.0,0.00013942,2]
[331733971,1720716633977,-150.0,0.00013944,2]
[331733972,1720716633986,-150.0,0.00013945,2]
[331733973,1720716633995,-150.0,0.00013949,2]
[331733974,1720716634006,-925.0,0.0001395,2]
[331733975,1720716634015,-150.0,0.00013952,2]
[331733976,1720716634025,-150.0,0.00013955,2]
[331733977,1720716634034,-150.0,0.00013955,2]
[331733978,1720716634044,-150.0,0.00013955,2]
[331733979,1720716634053,-150.0,0.0001396,2]
[331733980,1720716634063,-150.0,0.00013961,2]
[331733981,1720716634073,-150.0,0.00013969,2]
[331733982,1720716634082,-150.0,0.00013969,2]
[331733983,1720716634091,-1659.0,0.0001397,2]
[331733984,1720716634101,-1830.0,0.0001397,2]
[331733985,1720716634110,-1251.0,0.0001397,2]
[331733986,1720716634120,-361.0,0.0001397,2]
[331733987,1720716634129,-619.0,0.0001397,2]
[331733988,1720716634139,-449.0,0.0001397,2]
[331733989,1720716634148,-809.0,0.0001397,2]
[331733990,1720716634157,-444.0,0.0001397,2]
[331733991,1720716634166,-2377.0,0.0001397,2]
[331733992,1720716634175,-1305.0,0.0001397,2]
[331733993,1720716634184,-1990.0,0.0001397,2]
[331733994,1720716634194,-549.0,0.0001397,2]
[331733995,1720716634202,-3276.0,0.0001397,2]
[331733996,1720716634211,-283.0,0.0001397,2]
[331733997,1720716634220,-5198.787,0.0001397,2]
[331733998,1720716634230,-5831.808,0.0001397,2]
[331733999,1720716634239,-3818.986,0.0001397,2]
[331734000,1720716634248,-338.67331067,0.0001397,2]
[331734001,1720716634262,-739.69628748,0.0001397,2]
[331734002,1720716634273,-586.63040185,0.0001397,2]
[331734003,1720716634282,-381.45871296,0.0001397,2]
[331734004,1720716634294,-821.24728704,0.0001397,2]
[331734005,1720716634303,-150.0,0.0001398,2]
[331734006,1720716634312,-150.0,0.00013983,2]
[331734007,1720716634321,-150.0,0.00013985,2]
[331734008,1720716634330,-150.0,0.00013986,2]
[331734009,1720716634339,-500.0,0.00013987,2]
[331734010,1720716634348,-2859.77539432,0.00013988,2]
[331734011,1720716634359,-1312.15,0.00013988,2]
[331734012,1720716634370,-1027.34342877,0.00013988,2]
[331734013,1720716634382,-679.73,0.00013988,2]
[331734014,1720716634393,-966.43463374,0.00013988,2]
[331734015,1720716634404,-463.61871879,0.00013988,2]
[331734016,1720716634415,-2280.57713759,0.00013988,2]
[331734017,1720716634426,-44417.4910844,0.00013988,2]
[331734018,1720716634435,-500.0,0.00013988,2]
[331734019,1720716634444,-500.0,0.00013989,2]
[331734020,1720716634454,-724.97,0.00013989,2]
[331734021,1720716634463,-150.0,0.00013989,2]
[331734022,1720716634472,-578.73,0.00013989,2]
[331734023,1720716634480,-500.0,0.00013989,2]
[331734024,1720716634489,-1152.09,0.00013989,2]
[331734025,1720716634497,-500.0,0.00013989,2]